Workbook

Sheet CLAUSE!!!
A1: NOTE TO ALL TENDERERS: The tenderer shall compile his tender in accordance with the original Bills of Quantities in PDf format including any addendums issued. The excel soft copy issued must be checked for correctness and completeness by the tenderer and the Employer accepts no liability for any errors or ommissions, or misuse, of the Excel file.

Sheet Bills Of Quantities
A1: Page | B1: Item | C1: Description | D1: Uom | E1: Quantity | F1: Rate | G1: Amount | H1: Total | I1: x | J1: Formatted Qty | K1: x | L1: Abstract RecID | M1: x | N1: Lcode | O1: x | P1: x | Q1: x | R1: x | S1: x | T1: x | U1: x | V1: x | W1: x | X1: x | Y1: x | Z1: x | AA1: Package | AB1: Section | AC1: Bill | AD1: Trade | AE1: Type | AF1: ABUm | AG1: PayRef
C3: SECTION NO. 1 : PRELIMINARIES | AA3: 1 | AB3: 0 | AC3: 1 | AD3: -2 | AE3: H
AI4: NOTE: the column headings a - z must be present for the importer.
AI5: These contain an X which is set forecolor = white
C6: BILL NO.1 : PRELIMINARIES | AA6: 1 | AB6: 0 | AC6: 1 | AD6: -2 | AE6: H
A8: 1-2 | C8: BUILDING AGREEMENT AND PRELIMINARIES | L8: 5795 | N8: 0 | AA8: 1 | AB8: 0 | AC8: 1 | AD8: -2 | AE8: H | AF8: 0
A10: 1-2 | C10: SECTION A: PRINCIPAL BUILDING AGREEMENT | L10: 5796 | N10: 9 | AA10: 1 | AB10: 0 | AC10: 1 | AD10: -2 | AE10: H | AF10: 0
A12: 1-2 | C12: NOTES | L12: 5797 | N12: 1 | AA12: 1 | AB12: 0 | AC12: 1 | AD12: -2 | AE12: H | AF12: 0
A14: 1-2 | C14: 1. The Principal Building Agreement shall be the JBCC Series Edition 4.1, March 2005 as recommended by the Joint Building Contract Committee and as amended by this Tender Enquiry. | L14: 5798 | N14: 3 | AA14: 1 | AB14: 0 | AC14: 1 | AD14: -2 | AE14: C | AF14: 0
A16: 1-2 | C16: 2. The Preliminaries shall be JBCC Series, May 2005 for use with the Principal Building Agreement as recommended by the Joint Building Contracts Committee and as amended by this Tender Enquiry shall be deemed to be incorporated herein. | L16: 5799 | N16: 4 | AA16: 1 | AB16: 0 | AC16: 1 | AD16: -2 | AE16: C | AF16: 0
A18: 1-2 | C18: 3. Tenderers are referred to the abovementioned documents for the full intent and meaning of each clause thereof. These clauses are hereinafter referred to by clause number and heading only. | L18: 5800 | N18: 5 | AA18: 1 | AB18: 0 | AC18: 1 | AD18: -2 | AE18: C | AF18: 0
A20: 1-2 | C20: 4. Where standard clauses or alternatives are not entirely applicable to this contract, such modifications, corrections or additions as are necessary, are given as far as possible under each relevant clause heading. Additional Preliminary clauses are contained in Section C hereof. | L20: 5801 | N20: 6 | AA20: 1 | AB20: 0 | AC20: 1 | AD20: -2 | AE20: C | AF20: 0
A22: 1-2 | C22: 5. No claim whatsoever shall be entertained in respect of errors or omissions in pricing due to brevity of descriptions of items which are fully described when read in conjunction with the relevant clauses of the said Principal Building Agreement, Preliminaries and Preambles. | L22: 5802 | N22: -1 | AA22: 1 | AB22: 0 | AC22: 1 | AD22: -2 | AE22: C | AF22: 0
A24: 1-2 | C24: 6. The Tenderers shall allow opposite each of the clauses whatever costs and charges he may consider necessary for the carrying out, complying with and due observance of the provisions, conditions and requirements set out herein. Only priced items will be considered in respect of any adjustment of this Section. Any items left unpriced will be understood to be provided free of charge and no claim for any extras arising out of the Tenderer's omission to price any item will be entertained. | L24: 5803 | N24: -2 | AA24: 1 | AB24: 0 | AC24: 1 | AD24: -2 | AE24: C | AF24: 0
A26: 1-2 | C26: 7. Where modifications or amendments as described are made, such modifications and/or amendments shall supercede any conflicting provisions in the relevant clauses of the Standard Preliminaries or the Principal Building Agreement and the Tenderer shall make due allowance for whatever costs and charges he may consider necessary for the carrying out and observance of the provisions of the clauses as modified and/or amended. | L26: 5804 | N26: -3 | AA26: 1 | AB26: 0 | AC26: 1 | AD26: -2 | AE26: C | AF26: 0
A28: 1-2 | C28: 8. Where any item is not relevant to this specific contract, such item is marked N/A. | L28: 5805 | N28: 7 | AA28: 1 | AB28: 0 | AC28: 1 | AD28: -2 | AE28: C | AF28: 0
A30: 1-2 | C30: 9. If Alternative A as set out in clause B10.3 hereinafter is to be used for the adjustment of the preliminaries, each item priced is to be allocated to one or more of the three categories by insertion of "F","V","T" as the case may be against the price in the "rate" column immediately preceding the "amount" column, where "F" denotes a fixed amount (amount not to be varied), "V" denotes an amount variable in proportion to value, and "T" denotes an amount proportionate to time. | L30: 5806 | N30: 8 | AA30: 1 | AB30: 0 | AC30: 1 | AD30: -2 | AE30: C | AF30: 0
A32: 1-3 | C32: DEFINITIONS | L32: 5807 | N32: 11 | AA32: 1 | AB32: 0 | AC32: 1 | AD32: -2 | AE32: S | AF32: 0
A34: 1-3 | B34: 1 | C34: Definitions and interpretation (Clause 1). | D34: Item | E34: 1.00 | G34: =J34*F34 -> 0 | J34: 1 | L34: 5808 | N34: 12 | AA34: 1 | AB34: 0 | AC34: 1 | AD34: -2 | AE34: I | AF34: I
A36: 1-3 | C36: OBJECTIVE AND PREPARATION | L36: 5809 | N36: 13 | AA36: 1 | AB36: 0 | AC36: 1 | AD36: -2 | AE36: S | AF36: 0
A38: 1-3 | B38: 2 | C38: Offer, acceptance and performance (Clause 2). | D38: Item | E38: 1.00 | G38: =J38*F38 -> 0 | J38: 1 | L38: 5810 | N38: 14 | AA38: 1 | AB38: 0 | AC38: 1 | AD38: -2 | AE38: I | AF38: I
A40: 1-3 | B40: 3 | C40: Documents (Clause 3). | L40: 5811 | N40: 16 | AA40: 1 | AB40: 0 | AC40: 1 | AD40: -2 | AE40: I | AF40: I
C42: Clause 3.1 is deleted and substituted with: 'This tender is for a Government Contract. No Payment Guarantee will be provided.' | D42: Item | E42: 1.00 | G42: =J42*F42 -> 0 | J42: 1 | L42: 5811 | N42: 16 | AA42: 1 | AB42: 0 | AC42: 1 | AD42: -2 | AE42: I | AF42: I
A44: 1-3 | B44: 4 | C44: Design responsibility (Clause 4). | L44: 5812 | N44: 17 | AA44: 1 | AB44: 0 | AC44: 1 | AD44: -2 | AE44: I | AF44: I
C46: Clause 4.1 is amended by adding the following: | L46: 5812 | N46: 17 | AA46: 1 | AB46: 0 | AC46: 1 | AD46: -2 | AE46: I | AF46: I
C48: The Contractor shall indemnify and hold free the Employer and his agents from responsibility for any claim or proceeding whatsoever due to fault in the design, detailing, calculation etc., to the extent undertaken by the Contractor.' | L48: 5812 | N48: 17 | AA48: 1 | AB48: 0 | AC48: 1 | AD48: -2 | AE48: I | AF48: I
C50: Clause 4.2 is amended by adding the adding the following: | L50: 5812 | N50: 17 | AA50: 1 | AB50: 0 | AC50: 1 | AD50: -2 | AE50: I | AF50: I
C52: The Sub-contractors shall indemnify and hold free the Employer or his agents and the Contractor from responsibility for any claim or proceeding whatsoever due to fault in the design, detailing, calculations, etc., to the extent undertaken by the Sub-contractor/s.' | D52: Item | E52: 1.00 | G52: =J52*F52 -> 0 | J52: 1 | L52: 5812 | N52: 17 | AA52: 1 | AB52: 0 | AC52: 1 | AD52: -2 | AE52: I | AF52: I
A54: 1-3 | B54: 5 | C54: Employer's agents (Clause 5). | D54: Item | E54: 1.00 | G54: =J54*F54 -> 0 | J54: 1 | L54: 5813 | N54: 18 | AA54: 1 | AB54: 0 | AC54: 1 | AD54: -2 | AE54: I | AF54: I
A56: 1-3 | B56: 6 | C56: Site representative (Clause 6). | D56: Item | E56: 1.00 | G56: =J56*F56 -> 0 | J56: 1 | L56: 5814 | N56: 19 | AA56: 1 | AB56: 0 | AC56: 1 | AD56: -2 | AE56: I | AF56: I
A58: 1-3 | B58: 7 | C58: Compliance with regulations (Clause 7). | L58: 5815 | N58: 20 | AA58: 1 | AB58: 0 | AC58: 1 | AD58: -2 | AE58: I | AF58: I
C60: Without limiting the generality of the provisions of clause 7.0 of the agreement, the contractor’s attention is drawn to the provisions of the Construction Regulations, 2003 issued in terms of the Occupational Health and Safety Act, 1993 in which it is specifically stated that the employer shall prepare a documented health and safety specification for the works and that the employer shall ensure that the contractor has made provision for the cost of health and safety measures during the execution of the works. The principal agent shall, on behalf of the employer, issue such health and safety specification and the contractor shall price opposite this item for compliance with the act and the regulations and the provisions of the aforementioned health and safety specification, provided such provisions are reasonable in terms of the act and the regulations. | D60: Item | E60: 1.00 | G60: =J60*F60 -> 0 | J60: 1 | L60: 5815 | N60: 20 | AA60: 1 | AB60: 0 | AC60: 1 | AD60: -2 | AE60: I | AF60: I
A62: 1-3 | B62: 8 | C62: Works risk (Clause 8) | D62: Item | E62: 1.00 | G62: =J62*F62 -> 0 | J62: 1 | L62: 5816 | N62: 21 | AA62: 1 | AB62: 0 | AC62: 1 | AD62: -2 | AE62: I | AF62: I
A64: 1-3 | B64: 9 | C64: Indemnities (Clause 9). | L64: 5817 | N64: 22 | AA64: 1 | AB64: 0 | AC64: 1 | AD64: -2 | AE64: I | AF64: I
C66: Clause 9.1.1 is deleted and substituted with: 'Claims from other parties consequent upon death of bodily injury or illness of any person or physical loss or damage to any property, other than the works, arising out or due to the execution of the works or occupation of the site by the contractor or his sub contractors'. | D66: Item | E66: 1.00 | G66: =J66*F66 -> 0 | J66: 1 | L66: 5817 | N66: 22 | AA66: 1 | AB66: 0 | AC66: 1 | AD66: -2 | AE66: I | AF66: I
A68: 1-3 | B68: 10 | C68: Works insurances (Clause 10). | D68: Item | E68: 1.00 | G68: =J68*F68 -> 0 | J68: 1 | L68: 5818 | N68: 23 | AA68: 1 | AB68: 0 | AC68: 1 | AD68: -2 | AE68: I | AF68: I
A70: 1-4 | B70: 11 | C70: Liability insurances (Clause 11). | D70: Item | E70: 1.00 | G70: =J70*F70 -> 0 | J70: 1 | L70: 5819 | N70: 24 | AA70: 1 | AB70: 0 | AC70: 1 | AD70: -2 | AE70: I | AF70: I
A72: 1-4 | B72: 12 | C72: Effecting insurances (Clause 12). | D72: Item | E72: 1.00 | G72: =J72*F72 -> 0 | J72: 1 | L72: 5820 | N72: 25 | AA72: 1 | AB72: 0 | AC72: 1 | AD72: -2 | AE72: I | AF72: I
A74: 1-4 | B74: 13 | C74: No clause (Clause 13). | D74: Item | E74: 1.00 | G74: =J74*F74 -> 0 | J74: 1 | L74: 5821 | N74: 26 | AA74: 1 | AB74: 0 | AC74: 1 | AD74: -2 | AE74: I | AF74: I
A76: 1-4 | B76: 14 | C76: Security (Clause 14). | L76: 5822 | N76: 27 | AA76: 1 | AB76: 0 | AC76: 1 | AD76: -2 | AE76: I | AF76: I
C78: Clause 14.0 is amended by the addition of the following Clauses: 14.9 The guarantee provided by the Contractor's Guarantor shall have an expiry date (if stated) no less than 3 months after the practical completion date and shall be extended accordingly should the practical completion date be extended. 14.10 Should the Contractor's security lapse and not be renewed by the Contractor any time prior to the payment of final payment certificate, then: 14.10.1 An amount equal to five percent (5%) of the Contract Sum shall be withheld from the Contractor until security is reinstated or the final payment certificate is issued, whichever comes first. 14.10.2 The Contractor shall not be compensated with interest on the withheld amount stated in 14.10.1. | D78: Item | E78: 1.00 | G78: =J78*F78 -> 0 | J78: 1 | L78: 5822 | N78: 27 | AA78: 1 | AB78: 0 | AC78: 1 | AD78: -2 | AE78: I | AF78: I
A80: 1-4 | C80: EXECUTION | L80: 5823 | N80: 28 | AA80: 1 | AB80: 0 | AC80: 1 | AD80: -2 | AE80: S | AF80: 0
A82: 1-4 | B82: 15 | C82: Preparation for and execution of the works (Clause 15). | D82: Item | E82: 1.00 | G82: =J82*F82 -> 0 | J82: 1 | L82: 5824 | N82: 29 | AA82: 1 | AB82: 0 | AC82: 1 | AD82: -2 | AE82: I | AF82: I
A84: 1-4 | B84: 16 | C84: Access to the works (Clause 16). | L84: 5825 | N84: 30 | AA84: 1 | AB84: 0 | AC84: 1 | AD84: -2 | AE84: I | AF84: I
C86: It shall be the responsibility of the contractor to obtain all necessary statutory permissions required relating to the use of pavements, roadways and access to the Site, and the tenderer is deemed to have allowed against this item for any cost associated with use of pavements, access, use of other sites for temporary use by the Contractor during the progress of the Works, etc. | L86: 5825 | N86: 30 | AA86: 1 | AB86: 0 | AC86: 1 | AD86: -2 | AE86: I | AF86: I
C88: The area of the works to be occupied by the contractor, any restriction on the area and the limit of access or exit shall be established by the tenderer prior to submitting the tender. The Tenderer shall ascertain any other restrictions to the area that may be occupied by the Contractor including any restrictions imposed by any buildings, etc. and any limitations or restrictions that may be imposed by any Authorities. Workmen employed on the site are to be restricted to the immediate area of the site and access thereto. Space on the pavement areas for the storage of building materials, etc., must be arranged with the Local Authorities by the Tenderer who will be responsible for all charges in connection therewith. The Tenderer shall make all necessary provision in all rates to take into account these requirements as no claims for extras arising from these matters will be subsequently ente | L88: 5825 | N88: 30 | AA88: 1 | AB88: 0 | AC88: 1 | AD88: -2 | AE88: I | AF88: I
C89: rtained or admitted. | L89: 5825 | N89: 30 | AA89: 1 | AB89: 0 | AC89: 1 | AD89: -2 | AE89: I | AF89: I
D90: Item | E90: 1.00 | G90: =J90*F90 -> 0 | J90: 1 | L90: 5825 | N90: 30
A92: 1-4 | B92: 17 | C92: Contract instructions (Clause 17). | L92: 5826 | N92: 31 | AA92: 1 | AB92: 0 | AC92: 1 | AD92: -2 | AE92: I | AF92: I
C94: Contract instructions issued on site shall be recorded in a Site instruction book provided by the Contractor. Only those instructions signed off by the Principal Agent will be recognized. | D94: Item | E94: 1.00 | G94: =J94*F94 -> 0 | J94: 1 | L94: 5826 | N94: 31 | AA94: 1 | AB94: 0 | AC94: 1 | AD94: -2 | AE94: I | AF94: I
A96: 1-4 | B96: 18 | C96: Setting out of the works (Clause 18). | L96: 5827 | N96: 32 | AA96: 1 | AB96: 0 | AC96: 1 | AD96: -2 | AE96: I | AF96: I
C98: The contractor shall notify the principal agent if any encroachments of adjoining foundations, buildings, structures, pavements, boundaries, etc., exist in order that the necessary arrangements may be made for the rectification of any such encroachments. | D98: Item | E98: 1.00 | G98: =J98*F98 -> 0 | J98: 1 | L98: 5827 | N98: 32 | AA98: 1 | AB98: 0 | AC98: 1 | AD98: -2 | AE98: I | AF98: I
A100: 1-5 | B100: 19 | C100: Assignment (Clause 19). | D100: Item | E100: 1.00 | G100: =J100*F100 -> 0 | J100: 1 | L100: 5828 | N100: 34 | AA100: 1 | AB100: 0 | AC100: 1 | AD100: -2 | AE100: I | AF100: I
A102: 1-5 | B102: 20 | C102: Nominated subcontractors (Clause 20). | L102: 5829 | N102: 35 | AA102: 1 | AB102: 0 | AC102: 1 | AD102: -2 | AE102: I | AF102: I
C104: All subcontractors will be appointed as Selected Sub-contractors, unless otherwise agreed. | D104: Item | E104: 1.00 | G104: =J104*F104 -> 0 | J104: 1 | L104: 5829 | N104: 35 | AA104: 1 | AB104: 0 | AC104: 1 | AD104: -2 | AE104: I | AF104: I
A106: 1-5 | B106: 21 | C106: Selected subcontractors (Clause 21). | D106: Item | E106: 1.00 | G106: =J106*F106 -> 0 | J106: 1 | L106: 5830 | N106: 36 | AA106: 1 | AB106: 0 | AC106: 1 | AD106: -2 | AE106: I | AF106: I
A108: 1-5 | B108: 22 | C108: Employer's Direct contractors (Clause 22). | L108: 5831 | N108: 37 | AA108: 1 | AB108: 0 | AC108: 1 | AD108: -2 | AE108: I | AF108: I
C110: Clause 22 is amended by the addition of the following clause: | L110: 5831 | N110: 37 | AA110: 1 | AB110: 0 | AC110: 1 | AD110: -2 | AE110: I | AF110: I
C112: Clause 22.6 Refer to clause C25 'Direct and Separate Contracts' for details in respect of Direct Contracts' | D112: Item | E112: 1.00 | G112: =J112*F112 -> 0 | J112: 1 | L112: 5831 | N112: 37 | AA112: 1 | AB112: 0 | AC112: 1 | AD112: -2 | AE112: I | AF112: I
A114: 1-5 | B114: 23 | C114: Contractor's Domestic subcontractors (Clause 23). | D114: Item | E114: 1.00 | G114: =J114*F114 -> 0 | J114: 1 | L114: 5832 | N114: -12 | AA114: 1 | AB114: 0 | AC114: 1 | AD114: -2 | AE114: I | AF114: I
A116: 1-5 | C116: COMPLETION | L116: 5833 | N116: 39 | AA116: 1 | AB116: 0 | AC116: 1 | AD116: -2 | AE116: S | AF116: 0
A118: 1-5 | B118: 24 | C118: Practical completion (Clause 24). | D118: Item | E118: 1.00 | G118: =J118*F118 -> 0 | J118: 1 | L118: 5834 | N118: 41 | AA118: 1 | AB118: 0 | AC118: 1 | AD118: -2 | AE118: I | AF118: I
A120: 1-5 | B120: 25 | C120: Works completion (Clause 25). | L120: 5835 | N120: 42 | AA120: 1 | AB120: 0 | AC120: 1 | AD120: -2 | AE120: I | AF120: I
C122: Clause 25.1 is amended by the addition of the following Clauses: | L122: 5835 | N122: 42 | AA122: 1 | AB122: 0 | AC122: 1 | AD122: -2 | AE122: I | AF122: I
C124: 25.1.1 The Contractor shall, within five (5) working days of receipt of the works completion list, issue a programme indicating the dates for completion of the works completion list, for the approval of the Principal Agent. | L124: 5835 | N124: 42 | AA124: 1 | AB124: 0 | AC124: 1 | AD124: -2 | AE124: I | AF124: I
C126: 25.1.2 Should the Contractor fail to issue such a programme, it shall be deemed that the Contractor agrees to complete the works completion list within forty (40) working days of the date of receipt of the works completion list. | L126: 5835 | N126: 42 | AA126: 1 | AB126: 0 | AC126: 1 | AD126: -2 | AE126: I | AF126: I
C128: 25.1.3 Should the Contractor fail to complete the defects and achieve works completion in accordance with the agreed programme or the deemed forty (40) day period, and without prejudice to any other rights that the Employer may have, the Contractor shall be liable to the Employer for the penalty as described as the Works Completion Penalty per day until works completion is achieved. Refer to Clause 30. | D128: Item | E128: 1.00 | G128: =J128*F128 -> 0 | J128: 1 | L128: 5835 | N128: 42 | AA128: 1 | AB128: 0 | AC128: 1 | AD128: -2 | AE128: I | AF128: I
A130: 1-5 | B130: 26 | C130: Final completion (Clause 26). | D130: Item | E130: 1.00 | G130: =J130*F130 -> 0 | J130: 1 | L130: 5836 | N130: 43 | AA130: 1 | AB130: 0 | AC130: 1 | AD130: -2 | AE130: I | AF130: I
A132: 1-5 | B132: 27 | C132: Latent defects liability period (Clause 27). | L132: 5837 | N132: 44 | AA132: 1 | AB132: 0 | AC132: 1 | AD132: -2 | AE132: I | AF132: I
C134: Clause 27.0 is amended by the addition of the following clauses: "27.3 Any water leakage into the building, whether in the roof, external wall or other element of the building susceptible to water leakage shall, unless proven to be a design defect, or as a result of obvious storm damage, be classified as a latent defect in terms of clause 1.0 Definitions and Interpretations". "27.4 The Contractor shall attend to defects during the Defects Liability Period on a progressive basis, to the satisfaction of the Principal Agent and will not be permitted to wait until the end of the Defect Liability Period or until the amount of defects accummulates in order to attend to a comprehensive list of defects" | D134: Item | E134: 1.00 | G134: =J134*F134 -> 0 | J134: 1 | L134: 5837 | N134: 44 | AA134: 1 | AB134: 0 | AC134: 1 | AD134: -2 | AE134: I | AF134: I
A136: 1-6 | B136: 28 | C136: Sectional completion (Clause 28). | D136: Item | E136: 1.00 | G136: =J136*F136 -> 0 | J136: 1 | L136: 5838 | N136: 45 | AA136: 1 | AB136: 0 | AC136: 1 | AD136: -2 | AE136: I | AF136: I
A138: 1-6 | B138: 29 | C138: Revision of date for practical completion (Clause 29). | L138: 5839 | N138: 46 | AA138: 1 | AB138: 0 | AC138: 1 | AD138: -2 | AE138: I | AF138: I
C140: Clause 29 is amended as follows: | L140: 5839 | N140: 46 | AA140: 1 | AB140: 0 | AC140: 1 | AD140: -2 | AE140: I | AF140: I
C142: Should possession of the site not be given on or before the date stated in the Contract Data EC Schedule (2.4), then the extension to that date will also be applicable to the date for practical completion (4.0) and the contract sum will not be adjusted. | L142: 5839 | N142: 46 | AA142: 1 | AB142: 0 | AC142: 1 | AD142: -2 | AE142: I | AF142: I
C144: Clause 29.1.1 is deemed to be deleted and replace by the addition of the following: | L144: 5839 | N144: 46 | AA144: 1 | AB144: 0 | AC144: 1 | AD144: -2 | AE144: I | AF144: I
C146: 29.1.1 Inclement weather which shall be defined as weather in excess of the average recorded for the past ten (10) years by the nearest commonly recognised weather bureau in the region of the project. The Contractor shall be deemed to have allowed in his programme of the works and opposite this item or in in his rates, for the cost of all delays as a result of weather conditions which are below average or average (as defined above) Furthermore, the Contractor shall also have been deemed to have allowed in his programme for the and opposite this item or in his rates, for the cost of the loss of twelve (12) working days lost on the critical path of the programme due to delays as a result of inclement weather as defined above. | L146: 5839 | N146: 46 | AA146: 1 | AB146: 0 | AC146: 1 | AD146: -2 | AE146: I | AF146: I
C148: The above float which is included in the Contractor's programme may also be used for any other critical path delays which the Contractor may become entitled to, at the sole discretion of the Principal Agent. Each claim for delays as a result of inclement weather shall be made to the Principal Agent within seven (7) calendar days of the occurrence thereof, failing which no delays shall be recorded. | L148: 5839 | N148: 46 | AA148: 1 | AB148: 0 | AC148: 1 | AD148: -2 | AE148: I | AF148: I
C150: NOTE: Revision to the date of Practical Completion shall only be considered when work on the critical path of the agreed programme for the works is delayed. Clause 29 is amended by the addition of the following clause: The removal and replacement of materials and/or workmanship which do not conform to specification or drawing shall not constitute grounds for the extension of the construction period nor the adjustment of contract value. | D150: Item | E150: 1.00 | G150: =J150*F150 -> 0 | J150: 1 | L150: 5839 | N150: 46 | AA150: 1 | AB150: 0 | AC150: 1 | AD150: -2 | AE150: I | AF150: I
A152: 1-6 | B152: 30 | C152: Penalty for non-completion (Clause 30). | L152: 5840 | N152: 47 | AA152: 1 | AB152: 0 | AC152: 1 | AD152: -2 | AE152: I | AF152: I
C154: Clause 30.0 is amended by the addition of the following Clause: | L154: 5840 | N154: 47 | AA154: 1 | AB154: 0 | AC154: 1 | AD154: -2 | AE154: I | AF154: I
C156: 30.3 Penalties for not achieving the Date of Works Completion in terms of Clause 25.4 shall be levied at fifty percent (50%) of the penalties defined for not achieving Practical Completion. The penalty shall be in addition to any penalties due in terms of Clause 30.1; 30.2; and 30.3. | D156: Item | E156: 1.00 | G156: =J156*F156 -> 0 | J156: 1 | L156: 5840 | N156: 47 | AA156: 1 | AB156: 0 | AC156: 1 | AD156: -2 | AE156: I | AF156: I
A158: 1-7 | C158: PAYMENT | L158: 5841 | N158: 48 | AA158: 1 | AB158: 0 | AC158: 1 | AD158: -2 | AE158: S | AF158: 0
A160: 1-7 | B160: 31 | C160: Interim payment to the contractor (Clause 31). | L160: 5842 | N160: 49 | AA160: 1 | AB160: 0 | AC160: 1 | AD160: -2 | AE160: I | AF160: I
C162: Clause 31 is amended as follows: | L162: 5842 | N162: 49 | AA162: 1 | AB162: 0 | AC162: 1 | AD162: -2 | AE162: I | AF162: I
C164: The inclusion of materials and goods stored off site in the amount authorised for payment in terms of clause 31.3 shall be at the sole discretion of the principal agent and such inclusion shall only be considered upon the provision, by the contractor, of an approved guarantee issued by a registered commercial bank. Clause 31.6.5 is therefore not applicable. | L164: 5842 | N164: 49 | AA164: 1 | AB164: 0 | AC164: 1 | AD164: -2 | AE164: I | AF164: I
C166: Where prices are submitted by the contractor or nominated/selected sub contractor during the progress of the works in respect of contract instructions or in regard to a claim under the terms of the contract and notwithstanding the fact that such prices may be used in an interim payment certificate, there is to be no presumption of acceptance. Should the principal agent wish to accept any such prices prior to the issue of the final certificate, it will be in writing. | L166: 5842 | N166: 49 | AA166: 1 | AB166: 0 | AC166: 1 | AD166: -2 | AE166: I | AF166: I
C168: Clause 31.9 is amended as follows: | L168: 5842 | N168: 49 | AA168: 1 | AB168: 0 | AC168: 1 | AD168: -2 | AE168: I | AF168: I
C170: line 1, 'delete reference to seven (7) calender days and insert thirty (30) calender days' Clause 31.10 is amended by the deletion of 'date of practical completion' in the second and fourth sentence and replacing with 'date of final completion.' | L170: 5842 | N170: 49 | AA170: 1 | AB170: 0 | AC170: 1 | AD170: -2 | AE170: I | AF170: I
C172: The contractor shall attach a tax invoice as prescribed in the Value Added Tax legislation to each payment certificate when presenting the certificate to the employer for payment. Such tax invoices shall correctly reflect the prescribed information and the amounts shall match precisely the amounts included in the payment certificate. Should the contractor fail to comply with these requirements, the date of presentation of the certificate shall be deemed to be delayed at the contractor’s default until such time as the requirements are met.' | D172: Item | E172: 1.00 | G172: =J172*F172 -> 0 | J172: 1 | L172: 5842 | N172: 49 | AA172: 1 | AB172: 0 | AC172: 1 | AD172: -2 | AE172: I | AF172: I
A174: 1-7 | B174: 32 | C174: Adjustment to the contract value (Clause 32). | L174: 5843 | N174: 52 | AA174: 1 | AB174: 0 | AC174: 1 | AD174: -2 | AE174: I | AF174: I
C176: FIXED PRICE CONTRACT Clause 32.13 is deleted and replaced as follows: The tender is a fixed price and NO escalations in respect of increased costs of labour, materials, plant, fuel, freight, transportation and railage charges, taxes (save for VAT), customs or other duties, fees and charges shall be applicable. The contractor shall take the risk of all fluctuations in the rates of exchange of the rand or any other currency. | L176: 5843 | N176: 52 | AA176: 1 | AB176: 0 | AC176: 1 | AD176: -2 | AE176: I | AF176: I
C178: Bidders are advised that this Contract shall be a Fixed Price Contract and shall not be subject to the Contract Price Adjustment Provisions (CPAP) or any other escalation formula and therefore bidders are to allow for any increases (except any variations in the rate of Value Added Tax) in cost of labour, materials, transport, etc. | L178: 5843 | N178: 52 | AA178: 1 | AB178: 0 | AC178: 1 | AD178: -2 | AE178: I | AF178: I
C180: Add Clause 32.16: The Principal Agent and/or the Quantity Surveyor shall be entitled to call for, and review, documentation to substantiate any variations from any supplier, subcontractor, etc. | D180: Item | E180: 1.00 | G180: =J180*F180 -> 0 | J180: 1 | L180: 5843 | N180: 52 | AA180: 1 | AB180: 0 | AC180: 1 | AD180: -2 | AE180: I | AF180: I
A182: 1-8 | B182: 33 | C182: Recovery of expense and loss (Clause 33). | D182: Item | E182: 1.00 | G182: =J182*F182 -> 0 | J182: 1 | L182: 5844 | N182: 54 | AA182: 1 | AB182: 0 | AC182: 1 | AD182: -2 | AE182: I | AF182: I
A184: 1-8 | B184: 34 | C184: Final account and final payment (Clause 34). | L184: 5845 | N184: 55 | AA184: 1 | AB184: 0 | AC184: 1 | AD184: -2 | AE184: I | AF184: I
C186: Clause 34.1 is amended as follows: 'The principal agent shall prepare a final account for submission to the contractor within ninety (90) working days.' | D186: Item | E186: 1.00 | G186: =J186*F186 -> 0 | J186: 1 | L186: 5845 | N186: 55 | AA186: 1 | AB186: 0 | AC186: 1 | AD186: -2 | AE186: I | AF186: I
A188: 1-8 | B188: 35 | C188: Payment to other parties (Clause 35). | D188: Item | E188: 1.00 | G188: =J188*F188 -> 0 | J188: 1 | L188: 5846 | N188: 56 | AA188: 1 | AB188: 0 | AC188: 1 | AD188: -2 | AE188: I | AF188: I
A190: 1-8 | C190: CANCELLATION | L190: 5847 | N190: 60 | AA190: 1 | AB190: 0 | AC190: 1 | AD190: -2 | AE190: S | AF190: 0
A192: 1-8 | B192: 36 | C192: Cancellation by Employer - Contractor's default (Clause 36). | L192: 5848 | N192: 61 | AA192: 1 | AB192: 0 | AC192: 1 | AD192: -2 | AE192: I | AF192: I
C194: Should it appear to the Principal Agent concerned that the contractor is not executing the contract in accordance with the true intent and meaning thereof, or that he is refusing or delaying to execute the contract or that he is not carrying on the contract at such rate of progress as to ensure delivery by the date of delivery or that the time has expired within which delivery should have taken place or in the event of any other failure or default by the contractor, then in any such events, the Principal Agent, may give notice in writing to the contractor to make good the failure or default, and should the contractor fail to comply with the notice within the period specified therein, then and in such case report the matter to the Bid Adjudication Committee who shall, without prejudice to any of the Council’s rights under the contract, be at liberty forthwith to appoint the next most responsive tend | L194: 5848 | N194: 61 | AA194: 1 | AB194: 0 | AC194: 1 | AD194: -2 | AE194: I | AF194: I
C195: erer to perform such service as the contractor may have neglected to do so, or take the contract wholly or in part out of the contractor’s hands and order from or contract with any other person. | L195: 5848 | N195: 61 | AA195: 1 | AB195: 0 | AC195: 1 | AD195: -2 | AE195: I | AF195: I
C198: The contractor shall be responsible for any loss the Council may sustain by reason of such action as may be taken in terms of this clause. The termination of contracts awarded via the Bid Adjudication Committee are to be approved by the Bid Adjudication Committee. Should a contract be awarded and it subsequently be established that - Prohibition on awards to persons in the service of the state, of the SCM Regulations has been breached, the contract will be terminated with immediate effect. | D198: Item | E198: 1.00 | G198: =J198*F198 -> 0 | J198: 1 | L198: 5848 | N198: 61 | AA198: 1 | AB198: 0 | AC198: 1 | AD198: -2 | AE198: I | AF198: I
A200: 1-8 | B200: 37 | C200: Cancellation by Employer - Loss and damage (Clause 37). | D200: Item | E200: 1.00 | G200: =J200*F200 -> 0 | J200: 1 | L200: 5849 | N200: 62 | AA200: 1 | AB200: 0 | AC200: 1 | AD200: -2 | AE200: I | AF200: I
A202: 1-8 | B202: 38 | C202: Cancellation by Contractor - Employer's default (Clause 38). | D202: Item | E202: 1.00 | G202: =J202*F202 -> 0 | J202: 1 | L202: 5850 | N202: 63 | AA202: 1 | AB202: 0 | AC202: 1 | AD202: -2 | AE202: I | AF202: I
A204: 1-8 | B204: 39 | C204: Cancellation - Cessation of the works (Clause 39). | D204: Item | E204: 1.00 | G204: =J204*F204 -> 0 | J204: 1 | L204: 5851 | N204: 64 | AA204: 1 | AB204: 0 | AC204: 1 | AD204: -2 | AE204: I | AF204: I
A206: 1-8 | C206: DISPUTE | L206: 5852 | N206: 65 | AA206: 1 | AB206: 0 | AC206: 1 | AD206: -2 | AE206: S | AF206: 0
A208: 1-8 | B208: 40 | C208: Dispute Settlement (Clause 40). | D208: Item | E208: 1.00 | G208: =J208*F208 -> 0 | J208: 1 | L208: 5853 | N208: 66 | AA208: 1 | AB208: 0 | AC208: 1 | AD208: -2 | AE208: I | AF208: I
A210: 1-8 | C210: SUBSTITUTE PROVISIONS | L210: 5854 | N210: 65 | AA210: 1 | AB210: 0 | AC210: 1 | AD210: -2 | AE210: S | AF210: 0
A212: 1-8 | B212: 41 | C212: State clauses (Clause 41). | D212: Item | E212: 1.00 | G212: =J212*F212 -> 0 | J212: 1 | L212: 5855 | N212: 66 | AA212: 1 | AB212: 0 | AC212: 1 | AD212: -2 | AE212: I | AF212: I
A214: 1-8 | C214: CONTRACT VARIABLES | L214: 5856 | N214: 67 | AA214: 1 | AB214: 0 | AC214: 1 | AD214: -2 | AE214: S | AF214: 0
A216: 1-8 | B216: 42 | C216: The Schedule: Pre-Tender information (Clause 42). | D216: Item | E216: 1.00 | G216: =J216*F216 -> 0 | J216: 1 | L216: 5857 | N216: 68 | AA216: 1 | AB216: 0 | AC216: 1 | AD216: -2 | AE216: I | AF216: I
A218: 1-9 | B218: 43 | C218: DEFINITIONS AND INTERPRETATION (B1) | D218: Item | E218: 1.00 | G218: =J218*F218 -> 0 | J218: 1 | L218: 5888 | N218: -16 | AA218: 1 | AB218: 0 | AC218: 1 | AD218: -2 | AE218: I | AF218: I
A220: 1-9 | C220: Clause 42.2.5 Date on which possession of the site is intended to be given on :- Refer to Tender Document | L220: 5870 | N220: 94 | AA220: 1 | AB220: 0 | AC220: 1 | AD220: -2 | AE220: C | AF220: 0
A222: 1-9 | C222: Employer: | L222: 5859 | N222: 72 | AA222: 1 | AB222: 0 | AC222: 1 | AD222: -2 | AE222: C | AF222: 0
C224: Development Bank of South Africa (DBSA), | L224: 5859 | N224: 72 | AA224: 1 | AB224: 0 | AC224: 1 | AD224: -2 | AE224: C | AF224: 0
C226: Address: 1258 Lever Road, Halfway House, Midrand, 1658 | L226: 5859 | N226: 72 | AA226: 1 | AB226: 0 | AC226: 1 | AD226: -2 | AE226: C | AF226: 0
C228: Telephone: 011 313 3911 | L228: 5859 | N228: 72 | AA228: 1 | AB228: 0 | AC228: 1 | AD228: -2 | AE228: C | AF228: 0
C230: Email: iddlegal@dbsa.org | L230: 5859 | N230: 72 | AA230: 1 | AB230: 0 | AC230: 1 | AD230: -2 | AE230: C | AF230: 0
A232: 1-9 | C232: Principal Agent: | L232: 5860 | N232: 75 | AA232: 1 | AB232: 0 | AC232: 1 | AD232: -2 | AE232: C | AF232: 0
A234: 1-9 | C234: Architect: | L234: 5861 | N234: 75 | AA234: 1 | AB234: 0 | AC234: 1 | AD234: -2 | AE234: C | AF234: 0
A236: 1-9 | C236: Agent's Service: Electrical Agent ( 1 ): | L236: 5863 | N236: 78 | AA236: 1 | AB236: 0 | AC236: 1 | AD236: -2 | AE236: C | AF236: 0
A238: 1-9 | C238: Agent's Service: Quantity Surveyor Agent ( 2 ): | L238: 5862 | N238: 75 | AA238: 1 | AB238: 0 | AC238: 1 | AD238: -2 | AE238: C | AF238: 0
A240: 1-9 | C240: Agent's Service: Structural Engineer Agent ( 3 ): | L240: 5864 | N240: 73 | AA240: 1 | AB240: 0 | AC240: 1 | AD240: -2 | AE240: C | AF240: 0
A242: 1-9 | C242: Clause 42.2.1 Works Description: | L242: 5866 | N242: 90 | AA242: 1 | AB242: 0 | AC242: 1 | AD242: -2 | AE242: C | AF242: 0
C244: Refer to Tender Document | L244: 5866 | N244: 90 | AA244: 1 | AB244: 0 | AC244: 1 | AD244: -2 | AE244: C | AF244: 0
A246: 1-9 | C246: Clause 42.2.2 Site Description: | L246: 5867 | N246: 90 | AA246: 1 | AB246: 0 | AC246: 1 | AD246: -2 | AE246: C | AF246: 0
C248: Refer to Tender Document | L248: 5867 | N248: 90 | AA248: 1 | AB248: 0 | AC248: 1 | AD248: -2 | AE248: C | AF248: 0
A250: 1-9 | C250: Clause 42.3.2 Supplementary insurance is required : Refer to Tender Document | L250: 5877 | N250: 104 | AA250: 1 | AB250: 0 | AC250: 1 | AD250: -2 | AE250: C | AF250: 0
A252: 1-9 | C252: Clause 42.4.6 The contract value is to be adjusted using CPAP:- Refer to Tender Document | L252: 5885 | N252: 112 | AA252: 1 | AB252: 0 | AC252: 1 | AD252: -2 | AE252: C | AF252: 0
A254: 1-9 | C254: Clause 42.4.5 JBCC Engineering General Conditions are to be included in the documents :- No | L254: 5884 | N254: 111 | AA254: 1 | AB254: 0 | AC254: 1 | AD254: -2 | AE254: C | AF254: 0
A256: 1-9 | C256: Clause 42.4.4 Number of days for submission of priced documents : Refer to Tender Document | L256: 5883 | N256: 110 | AA256: 1 | AB256: 0 | AC256: 1 | AD256: -2 | AE256: C | AF256: 0
A258: 1-9 | C258: Clause 42.4.3 Bills of Quantities drawn up in accordance with :- Standard System of Measuring Building Work - Seventh Edition including all latest amendments at date of tender | L258: 5882 | N258: 109 | AA258: 1 | AB258: 0 | AC258: 1 | AD258: -2 | AE258: C | AF258: 0
A260: 1-9 | C260: Clause 42.4.2 Number of construction document copies to be supplied to the Contractor free of charge :- Refer to Tender Document | L260: 5881 | N260: 108 | AA260: 1 | AB260: 0 | AC260: 1 | AD260: -2 | AE260: C | AF260: 0
A262: 1-9 | C262: Clause 42.4.1 Waiver of the contractor's lien is required :- Refer to Tender Document | L262: 5880 | N262: 107 | AA262: 1 | AB262: 0 | AC262: 1 | AD262: -2 | AE262: C | AF262: 0
A264: 1-9 | C264: Clause 42.4.7 Details of changes made to the provisions of JBCC standard documentation: | L264: 5886 | N264: 113 | AA264: 1 | AB264: 0 | AC264: 1 | AD264: -2 | AE264: C | AF264: 0
C266: Note: The tenderer must study the modifications and amendments made to the relevant clauses in the Preliminaries section of the Bills of Quantities, under each clause heading. | L266: 5886 | N266: 113 | AA266: 1 | AB266: 0 | AC266: 1 | AD266: -2 | AE266: C | AF266: 0
A268: 1-9 | C268: Clause 42.3.3 Public liability insurance to be effected by Contractor For the amount of: Refer to Tender Document | L268: 5878 | N268: 104 | AA268: 1 | AB268: 0 | AC268: 1 | AD268: -2 | AE268: C | AF268: 0
A270: 1-9 | C270: Clause 42.2.4 | L270: 5869 | N270: 93 | AA270: 1 | AB270: 0 | AC270: 1 | AD270: -2 | AE270: C | AF270: 0
C272: This Agreement is for a State Contract :- Yes | L272: 5869 | N272: 93 | AA272: 1 | AB272: 0 | AC272: 1 | AD272: -2 | AE272: C | AF272: 0
C274: Payment will be made for materials and goods:- Yes | L274: 5869 | N274: 93 | AA274: 1 | AB274: 0 | AC274: 1 | AD274: -2 | AE274: C | AF274: 0
C276: Dispute resolution :- Mediation (in terms of 40.4) followed by litigation. | L276: 5869 | N276: 93 | AA276: 1 | AB276: 0 | AC276: 1 | AD276: -2 | AE276: C | AF276: 0
C278: Arbitration rules as recommended by the Association of Arbitrators (SA) :- N/A | L278: 5869 | N278: 93 | AA278: 1 | AB278: 0 | AC278: 1 | AD278: -2 | AE278: C | AF278: 0
A280: 1-10 | C280: Clause 42.3.1 Contract works insurance to be effected by Contractor for the sum of: Refer to Tender Document | L280: 5876 | N280: 104 | AA280: 1 | AB280: 0 | AC280: 1 | AD280: -2 | AE280: C | AF280: 0
A282: 1-10 | C282: Clause 42.2.9 The law applicable to this agreement shall be that of - South Africa. | L282: 5874 | N282: 100 | AA282: 1 | AB282: 0 | AC282: 1 | AD282: -2 | AE282: C | AF282: 0
A284: 1-10 | C284: Clause 42.2.8 Intended dates of practical completion and the penalties per calendar day for the works in sections : Refer to Tender Document | L284: 5873 | N284: 97 | AA284: 1 | AB284: 0 | AC284: 1 | AD284: -2 | AE284: C | AF284: 0
A286: 1-10 | C286: Clause 42.2.7 Intended date of practical completion and the penalty per calendar day for the works as a whole :- Refer to Tender Document | L286: 5872 | N286: 96 | AA286: 1 | AB286: 0 | AC286: 1 | AD286: -2 | AE286: C | AF286: 0
A288: 1-10 | C288: Clause 42.2.6 Period for the commencement of the works after the contractor takes possession of the site :- Refer to Tender Document | L288: 5871 | N288: 95 | AA288: 1 | AB288: 0 | AC288: 1 | AD288: -2 | AE288: C | AF288: 0
A290: 1-10 | C290: Clause 42.2.3 Work or Installations by Others: Yes | L290: 5868 | N290: 92 | AA290: 1 | AB290: 0 | AC290: 1 | AD290: -2 | AE290: C | AF290: 0
A292: 1-10 | C292: CONTRACTING AND OTHER PARTIES (Clause 42.1) | L292: 5858 | N292: 71 | AA292: 1 | AB292: 0 | AC292: 1 | AD292: -2 | AE292: H | AF292: 0
A294: 1-10 | C294: CONTRACT DETAILS (Clause 42.2) | L294: 5865 | N294: 88 | AA294: 1 | AB294: 0 | AC294: 1 | AD294: -2 | AE294: H | AF294: 0
A296: 1-10 | C296: INSURANCES (Clause 42.3) | L296: 5875 | N296: 101 | AA296: 1 | AB296: 0 | AC296: 1 | AD296: -2 | AE296: H | AF296: 0
A298: 1-10 | C298: DOCUMENTS (Clause 42.4) | L298: 5879 | N298: 105 | AA298: 1 | AB298: 0 | AC298: 1 | AD298: -2 | AE298: H | AF298: 0
A300: 1-10 | C300: SECTION B: PRELIMINARIES | L300: 5887 | N300: 114 | AA300: 1 | AB300: 0 | AC300: 1 | AD300: -2 | AE300: H | AF300: 0
A302: 1-10 | C302: DOCUMENTS (B2) | L302: 5889 | N302: 116 | AA302: 1 | AB302: 0 | AC302: 1 | AD302: -2 | AE302: S | AF302: 0
A304: 1-10 | B304: 44 | C304: Checking of documents (B2.1) The items in these Bills of Quantities are to be read and priced in conjunction with, and the descriptions regarded as amplified by the Model Preambles for Trades as recommended and published by the Association of South African Quantity Surveyors, 1999 edition, and no claim arising from brevity of description of items fully described in the said Model Preambles to all Trades and Supplementary documentation will be entertained. | L304: 5890 | N304: 117 | AA304: 1 | AB304: 0 | AC304: 1 | AD304: -2 | AE304: I | AF304: I
C306: Notwithstanding the issue of the tender drawings, it will remain the responsibility of the Tenderer to study all available drawings at the offices of the Principal Agent during normal working hours in order to acquaint himself with all the cost implications of the design, programming, phasing, etc. | D306: Item | E306: 1.00 | G306: =J306*F306 -> 0 | J306: 1 | L306: 5890 | N306: 117 | AA306: 1 | AB306: 0 | AC306: 1 | AD306: -2 | AE306: I | AF306: I
A308: 1-10 | B308: 45 | C308: Provisional Bills of Quantities (B2.2) | L308: 5891 | N308: 120 | AA308: 1 | AB308: 0 | AC308: 1 | AD308: -2 | AE308: I | AF308: I
C310: Clause 2.2 is deemed to be deleted and replaced by the following: | L310: 5891 | N310: 120 | AA310: 1 | AB310: 0 | AC310: 1 | AD310: -2 | AE310: I | AF310: I
C312: "Except where indicated otherwise, the quantities of and classes and kinds of works set out in these Bills of Quantities are provisional and do not purport to represent the final quantities of and classes and kinds of work eventually required to be done. The quantities of and classes and kinds of work contained herein have been set down solely in order to form a basis for obtaining competitive tenders. | L312: 5891 | N312: 120 | AA312: 1 | AB312: 0 | AC312: 1 | AD312: -2 | AE312: I | AF312: I
C314: The Bills of Quantities are not to be used for ordering materials under any circumstances whether this be with regard to description or specification of materials or goods required, or with regard to quantities. Failure to comply with this condition is entirely at the Contractor's own risk. | L314: 5891 | N314: 120 | AA314: 1 | AB314: 0 | AC314: 1 | AD314: -2 | AE314: I | AF314: I
C316: The Contractor shall be obliged upon instruction of the Principal Agent to execute such quantities of and classes and kinds of work as the Principal Agent in his sole discretion may deem necessary or which, in the Principal Agent's opinion, become expedient from time to time or which may be required to meet the Employer's requirements, whether or not such quantities of and classes or kinds of work may appear in these Bills of Quantities or the contract drawings. | L316: 5891 | N316: 120 | AA316: 1 | AB316: 0 | AC316: 1 | AD316: -2 | AE316: I | AF316: I
C318: The consideration payable to the Contractor in respect of the works shall be determined by the Agent by the application of the rates contained in the priced Bill of Quantities to the quantities of and classes and kinds of work actually executed, which quantities of and classes and kinds of work shall be determined by the Agent. | L318: 5891 | N318: 120 | AA318: 1 | AB318: 0 | AC318: 1 | AD318: -2 | AE318: I | AF318: I
C320: The rates contained in the priced Bills of Quantities shall apply irrespective of the final quantities of the different classes and kinds of work actually executed. No claims for extras, loss of profit, variation of rates or other similar claims will be entertained as a result of any variations whatsoever between the quantities of work set out in these Bills of Quantities and the quantities of work actually executed, nor as a result of any variation whatsoever between the contract sum and the final value of works. | L320: 5891 | N320: 120 | AA320: 1 | AB320: 0 | AC320: 1 | AD320: -2 | AE320: I | AF320: I
C322: Prime Cost Amounts, Budgetary Allowances, Provisional Amounts, etc., contained herein may be omitted or reduced at the Principal Agent's sole discretion and the Contractor shall not be entitled to claim for any loss by way of reduction or omission of any discount, or percentage relating to Prime Cost Amounts, Budgetary Allowances, Provisional Amounts, etc., or loss of profit related thereto." | D322: Item | E322: 1.00 | G322: =J322*F322 -> 0 | J322: 1 | L322: 5891 | N322: 120 | AA322: 1 | AB322: 0 | AC322: 1 | AD322: -2 | AE322: I | AF322: I
A324: 1-11 | B324: 46 | C324: Availability of construction documentation (B2.3) | L324: 5892 | N324: 122 | AA324: 1 | AB324: 0 | AC324: 1 | AD324: -2 | AE324: I | AF324: I
C326: Construction drawings are incomplete and will be progressively completed during the construction period. | D326: Item | E326: 1.00 | G326: =J326*F326 -> 0 | J326: 1 | L326: 5892 | N326: 122 | AA326: 1 | AB326: 0 | AC326: 1 | AD326: -2 | AE326: I | AF326: I
A328: 1-11 | B328: 47 | C328: Interests of Agents (B2.4) | D328: Item | E328: 1.00 | G328: =J328*F328 -> 0 | J328: 1 | L328: 5893 | N328: 124 | AA328: 1 | AB328: 0 | AC328: 1 | AD328: -2 | AE328: I | AF328: I
A330: 1-11 | B330: 48 | C330: Priced documents (B2.5) | D330: Item | E330: 1.00 | G330: =J330*F330 -> 0 | J330: 1 | L330: 5894 | N330: 125 | AA330: 1 | AB330: 0 | AC330: 1 | AD330: -2 | AE330: I | AF330: I
A332: 1-11 | B332: 49 | C332: Tender submission (B2.6) | D332: Item | E332: 1.00 | G332: =J332*F332 -> 0 | J332: 1 | L332: 5895 | N332: 126 | AA332: 1 | AB332: 0 | AC332: 1 | AD332: -2 | AE332: I | AF332: I
A334: 1-11 | C334: THE SITE (B3) | L334: 5896 | N334: 133 | AA334: 1 | AB334: 0 | AC334: 1 | AD334: -2 | AE334: S | AF334: 0
A336: 1-11 | B336: 50 | C336: Defined works area (B3.1) | L336: 5897 | N336: 134 | AA336: 1 | AB336: 0 | AC336: 1 | AD336: -2 | AE336: I | AF336: I
C338: The area of the works to be occupied by the contractor, any restriction on the area and the limit of access or exit will be pointed out to the contractor by the principal agent on handing over of the site. The Tenderer shall ascertain any other restrictions to the area that may be occupied by the Contractor including any restrictions imposed by any buildings, etc. And any limitations or restrictions that may be imposed by any Authorities. Workmen employed on the site are to be restricted to the immediate area of the site and access thereto. Space on the pavement areas for the storage of building materials, etc., must be arranged with the Local Authorities by the Tenderer who will be responsible for all charges in connection therewith. The Tenderer shall make all necessary provision in all rates to take into account these requirements as no claims for extras arising from these matters will be su | L338: 5897 | N338: 134 | AA338: 1 | AB338: 0 | AC338: 1 | AD338: -2 | AE338: I | AF338: I
C339: bsequently entertained or admitted. | L339: 5897 | N339: 134 | AA339: 1 | AB339: 0 | AC339: 1 | AD339: -2 | AE339: I | AF339: I
D340: Item | E340: 1.00 | G340: =J340*F340 -> 0 | J340: 1 | L340: 5897 | N340: 134
A342: 1-12 | B342: 51 | C342: Geotechnical investigation (B3.2) | D342: Item | E342: 1.00 | G342: =J342*F342 -> 0 | J342: 1 | L342: 5898 | N342: 136 | AA342: 1 | AB342: 0 | AC342: 1 | AD342: -2 | AE342: I | AF342: I
A344: 1-12 | B344: 52 | C344: Inspection of the Site (B3.3) No Claim for extras arising from the contractor having failed to comply with the clause will be entertained. | D344: Item | E344: 1.00 | G344: =J344*F344 -> 0 | J344: 1 | L344: 5899 | N344: 137 | AA344: 1 | AB344: 0 | AC344: 1 | AD344: -2 | AE344: I | AF344: I
A346: 1-12 | B346: 53 | C346: Existing premises occupied (B3.4) - YES | D346: Item | E346: 1.00 | G346: =J346*F346 -> 0 | J346: 1 | L346: 5900 | N346: 139 | AA346: 1 | AB346: 0 | AC346: 1 | AD346: -2 | AE346: I | AF346: I
A348: 1-12 | B348: 54 | C348: Previous work - dimensional accuracy (B3.5) | L348: 5901 | N348: 140 | AA348: 1 | AB348: 0 | AC348: 1 | AD348: -2 | AE348: I | AF348: I
C350: The piling positions, tolerances, etc., must be surveyed, confirmed and accepted in writing by the Principal Contractor within 7 calender days of construction commencement. | L350: 5901 | N350: 140 | AA350: 1 | AB350: 0 | AC350: 1 | AD350: -2 | AE350: I | AF350: I
C352: Furthermore, the Contractor shall within 7 calender days of commencement of construction arrange for the Piling contractor to undertake and confirm integrity tests of the piling (the cost of testing of piles has been allowed for in the seperate piling contract. | D352: Item | E352: 1.00 | G352: =J352*F352 -> 0 | J352: 1 | L352: 5901 | N352: 140 | AA352: 1 | AB352: 0 | AC352: 1 | AD352: -2 | AE352: I | AF352: I
A354: 1-12 | B354: 55 | C354: Previous work - defects (B3.6) | D354: Item | E354: 1.00 | G354: =J354*F354 -> 0 | J354: 1 | L354: 5902 | N354: 141 | AA354: 1 | AB354: 0 | AC354: 1 | AD354: -2 | AE354: I | AF354: I
A356: 1-12 | B356: 56 | C356: Services - known (B3.7) | D356: Item | E356: 1.00 | G356: =J356*F356 -> 0 | J356: 1 | L356: 5903 | N356: 142 | AA356: 1 | AB356: 0 | AC356: 1 | AD356: -2 | AE356: I | AF356: I
A358: 1-12 | B358: 57 | C358: Services - unknown (B3.8) | D358: Item | E358: 1.00 | G358: =J358*F358 -> 0 | J358: 1 | L358: 5904 | N358: 143 | AA358: 1 | AB358: 0 | AC358: 1 | AD358: -2 | AE358: I | AF358: I
A360: 1-12 | B360: 58 | C360: Protection of trees (B3.9) | D360: Item | E360: 1.00 | G360: =J360*F360 -> 0 | J360: 1 | L360: 5905 | N360: 144 | AA360: 1 | AB360: 0 | AC360: 1 | AD360: -2 | AE360: I | AF360: I
A362: 1-12 | B362: 59 | C362: Articles of value (B3.10) | D362: Item | E362: 1.00 | G362: =J362*F362 -> 0 | J362: 1 | L362: 5906 | N362: 145 | AA362: 1 | AB362: 0 | AC362: 1 | AD362: -2 | AE362: I | AF362: I
A364: 1-12 | B364: 60 | C364: Inspection of adjoining properties (B3.11) | L364: 5907 | N364: 146 | AA364: 1 | AB364: 0 | AC364: 1 | AD364: -2 | AE364: I | AF364: I
C366: Note: The Contractor shall undertake the inquisitions and take the required actions as defined in this Clause. | L366: 5907 | N366: 146 | AA366: 1 | AB366: 0 | AC366: 1 | AD366: -2 | AE366: I | AF366: I
C368: The Tenderer shall inspect access roads, etc and shall be responsible for any damage evident at the end of the contract which has not been pointed out. | D368: Item | E368: 1.00 | G368: =J368*F368 -> 0 | J368: 1 | L368: 5907 | N368: 146 | AA368: 1 | AB368: 0 | AC368: 1 | AD368: -2 | AE368: I | AF368: I
A370: 1-13 | C370: MANAGEMENT OF CONTRACT (B4) | L370: 5908 | N370: 149 | AA370: 1 | AB370: 0 | AC370: 1 | AD370: -2 | AE370: S | AF370: 0
A372: 1-13 | B372: 61 | C372: Management of the Works (B4.1) Clause 4.1 shall be deemed to be amended by the addition of the following: 'The contractor shall, to the satisfaction of the principal agent, provide the services of an experienced and competent Construction Manager and Site Agent supported by a management team who shall inter alia be responsible for all activities of the contractor and all sub-contractors and in particular:- a) Programming b) Scheduling c) Reporting d) Production of shop drawings and samples e) Procurement and expediting f) Liaison and co-ordinating of construction g) Commissioning, instruction, handover and follow up. h) Monitoring and reporting on building activities taking place off site. The names and CV's on the contractor's site management team shall be submitted to the principal agent prior to commencement on site and, after the principal agent's agreement on the composition thereof has b | L372: 5909 | N372: 150 | AA372: 1 | AB372: 0 | AC372: 1 | AD372: -2 | AE372: I | AF372: I
C373: een obtained. No changes shall be made nor shall any member of the said team be removed from site while remaining in employ of the contractor without the principal agent's express written approval. | L373: 5909 | N373: 150 | AA373: 1 | AB373: 0 | AC373: 1 | AD373: -2 | AE373: I | AF373: I
D374: Item | E374: 1.00 | G374: =J374*F374 -> 0 | J374: 1 | L374: 5909 | N374: 150
A376: 1-13 | B376: 62 | C376: Programme for the Works (B4.2) | D376: Item | E376: 1.00 | G376: =J376*F376 -> 0 | J376: 1 | L376: 5910 | N376: 151 | AA376: 1 | AB376: 0 | AC376: 1 | AD376: -2 | AE376: I | AF376: I
A378: 1-13 | B378: 63 | C378: Progress meetings (B4.3) | D378: Item | E378: 1.00 | G378: =J378*F378 -> 0 | J378: 1 | L378: 5911 | N378: 152 | AA378: 1 | AB378: 0 | AC378: 1 | AD378: -2 | AE378: I | AF378: I
A380: 1-13 | B380: 64 | C380: Technical meetings (B4.4) | D380: Item | E380: 1.00 | G380: =J380*F380 -> 0 | J380: 1 | L380: 5912 | N380: 153 | AA380: 1 | AB380: 0 | AC380: 1 | AD380: -2 | AE380: I | AF380: I
A382: 1-13 | B382: 65 | C382: Labour and Plant Records (B4.5) | D382: Item | E382: 1.00 | G382: =J382*F382 -> 0 | J382: 1 | L382: 5913 | N382: 153 | AA382: 1 | AB382: 0 | AC382: 1 | AD382: -2 | AE382: I | AF382: I
A384: 1-13 | C384: SAMPLES AND SHOP DRAWINGS (B5) | L384: 5914 | N384: 154 | AA384: 1 | AB384: 0 | AC384: 1 | AD384: -2 | AE384: S | AF384: 0
A386: 1-13 | B386: 66 | C386: Samples of materials (B5.1) | D386: Item | E386: 1.00 | G386: =J386*F386 -> 0 | J386: 1 | L386: 5915 | N386: 155 | AA386: 1 | AB386: 0 | AC386: 1 | AD386: -2 | AE386: I | AF386: I
A388: 1-13 | B388: 67 | C388: Workmanship samples (B5.2) | D388: Item | E388: 1.00 | G388: =J388*F388 -> 0 | J388: 1 | L388: 5916 | N388: 156 | AA388: 1 | AB388: 0 | AC388: 1 | AD388: -2 | AE388: I | AF388: I
A390: 1-13 | B390: 68 | C390: Shop drawings (B5.3) | L390: 5917 | N390: 157 | AA390: 1 | AB390: 0 | AC390: 1 | AD390: -2 | AE390: I | AF390: I
... 1225 more rows

Sheet Final Summary
B3: MANGETE PRIMARY SCHOOL | F3: Page | G3: Total
A4: Section | B4: FINAL SUMMARY | G4: R
A5: 1 | B5: PRELIMINARIES | G5: =+'Bills Of Quantities'!H752 -> 0.00
A7: 2 | B7: ALTERATIONS | G7: =+'Bills Of Quantities'!H1591 -> 128,000.00
A9: 3 | B9: BUILDING WORKS | G9: =+'Bills Of Quantities'!H2246 -> 0.00
A11: 4 | B11: ELECTRICAL | G11: =+'Bills Of Quantities'!H2631 -> 0.00
A13: 5 | B13: EXTERNAL WORKS | G13: =+'Bills Of Quantities'!H2803 -> 108,000.00
A15: 6 | B15: PROVISIONAL SUMS | G15: =+'Bills Of Quantities'!H2946 -> 1,778,000.00
B18: SUB-TOTAL | F18: R | G18: =+SUM(G5:G15) -> 2,014,000.00
B20: CONTINGENCY ALLOWANCE
B21: Allow the sum equivalent to 5% of the sub-total above for contingencies, to be expended as directed by the Principal Agent and to be deducted in whole or in part if not required | F21: R | G21: =+ROUND(G18*10%,2) -> 201,400.00
B23: SUB-TOTAL | F23: R | G23: =+SUM(G18:G21) -> 2,215,400.00
B25: ADD: VALUE ADDED TAX | D25: 15% | F25: R | G25: =+ROUND(G23*15%,2) -> 332,310.00
B27: TOTAL | F27: R | G27: =+SUM(G23:G25) -> 2,547,710.00
